bitfinex/quotes_ETHUSD_20240618
["timestamp","ask_amount","ask_price","bid_price","bid_amount"]
[1718735549651,1.22627174,3414.4,3414.3,2.92885]
[1718735549954,1.5319556,3414.5,3414.3,2.92885]
[1718735550119,1.22607041,3414.4,3414.1,2.92901]
[1718735550319,1.22607041,3414.3,3414.1,2.92896]
[1718735550927,1.22607041,3414.2,3413.7,2.92933]
[1718735551131,0.91945203,3413.9,3413.8,2.92928]
[1718735552256,1.22607041,3414.0,3413.8,2.92928]
[1718735552467,0.91935597,3413.9,3413.8,2.92928]
[1718735552751,1.22607041,3414.1,3413.8,2.92928]
[1718735552988,0.91940562,3413.9,3413.8,2.92928]
[1718735553160,1.22607041,3414.0,3413.9,2.9292]
[1718735553661,1.22607041,3414.0,3413.3,5.2753]
[1718735553830,0.61284624,3413.6,3413.5,2.92953]
[1718735554032,0.91926936,3413.7,3413.5,0.55]
[1718735554244,0.91926936,3413.6,3413.4,2.92962]
[1718735554562,0.91926936,3413.6,3413.5,2.92954]
[1718735556753,0.91926936,3413.6,3413.5,5.56568]
[1718735556933,0.61235361,3413.6,3413.5,5.56568]
[1718735557133,0.91926936,3413.7,3413.5,2.63614]
[1718735558662,0.91926936,3413.7,3413.6,2.92945]
[1718735560427,0.91926936,3413.8,3413.6,2.92945]
[1718735560849,0.91926936,3413.7,3413.5,2.92952]
[1718735561055,0.61175341,3413.6,3413.5,2.92952]
[1718735562227,0.61175341,3413.6,3413.5,5.85906]
[1718735562778,0.61175341,3413.7,3413.6,5.8589]
[1718735563063,0.61175341,3413.7,3413.6,2.92945]
[1718735563367,0.91926936,3413.8,3413.6,2.92945]
[1718735563575,0.91926936,3413.8,3413.7,2.92937]
[1718735564124,0.91926936,3413.8,3413.6,2.92943]
[1718735565265,0.91926936,3413.8,3413.3,2.9297]
[1718735565464,0.61174319,3413.6,3413.3,2.9297]
[1718735565765,0.61174319,3413.6,3413.2,2.92974]
[1718735565939,0.61174319,3413.4,3413.3,2.92971]
[1718735566268,0.91926936,3413.5,3413.3,2.92971]
[1718735567133,0.61196692,3413.4,3413.0,2.92994]
[1718735567331,0.61196692,3413.2,3413.0,2.92994]
[1718735567932,0.61196692,3413.1,3413.0,2.92994]
[1718735568850,0.61196692,3413.1,3412.9,2.93005]
[1718735569238,0.61196692,3413.1,3412.7,2.93021]
[1718735569443,0.61196692,3413.0,3412.6,2.93029]
[1718735569828,0.61196692,3412.7,3412.6,2.93029]
[1718735570275,0.61196692,3412.8,3412.7,2.93023]
[1718735570477,0.61228801,3412.8,3412.7,2.93021]
[1718735571139,0.61228801,3412.8,3412.7,5.86044]
[1718735571541,0.91926936,3412.9,3412.8,2.93014]
[1718735571940,0.91926936,3412.9,3412.8,2.63939846]
[1718735572139,0.91926936,3413.0,3412.8,2.63939846]
[1718735572339,2.13000611,3412.9,3412.3,2.93053]
[1718735572575,0.61271944,3412.5,3412.3,2.93053]
[1718735572771,0.61271944,3412.4,3412.3,2.93053]
[1718735573757,0.61271944,3412.4,3412.3,5.8611]
[1718735575266,0.61271944,3412.5,3412.3,5.8611]
[1718735575600,0.61271944,3412.4,3412.3,2.93053]
[1718735576446,0.61271944,3412.6,3412.3,0.886117]
[1718735576683,0.61271944,3412.8,3412.7,5.86046]
[1718735577054,0.61271944,3412.8,3412.7,8.79069]
[1718735577257,0.61271944,3412.9,3412.8,8.79042]
[1718735577491,0.61271944,3412.9,3412.8,5.86028]
[1718735577655,0.91907917,3413.0,3412.9,2.93005]
[1718735578375,0.91907917,3413.0,3412.4,0.55]
[1718735578589,0.91907917,3413.0,3412.6,2.93024]
[1718735578797,0.91907917,3412.8,3412.6,2.93024]
[1718735579154,0.91907917,3412.7,3412.6,2.93024]
[1718735579364,0.91907917,3412.8,3412.6,2.93024]
[1718735580401,0.91907917,3412.7,3412.3,2.93049]
[1718735580612,0.91907917,3412.7,3412.4,2.93048]
[1718735580613,0.61209108,3412.5,3412.4,2.93048]
[1718735580993,0.91907917,3412.6,3412.4,2.93048]
[1718735581800,0.61207718,3412.5,3412.4,2.93048]
[1718735582220,0.91907917,3412.6,3412.4,2.93048]
[1718735582390,0.61190659,3412.5,3412.2,2.93064]
[1718735582588,0.61190659,3412.5,3412.0,10.26076]
[1718735582783,0.61190659,3412.4,3412.0,10.26076]
[1718735583327,0.61190659,3412.2,3412.0,10.26076]
[1718735583626,0.61190659,3412.2,3412.1,2.93074]
[1718735583796,0.61190659,3412.2,3412.0,2.9308]
[1718735583984,0.61190659,3412.1,3412.0,2.9308]
[1718735584189,0.61190659,3412.1,3411.7,2.93101]
[1718735584418,0.61190659,3412.1,3411.7,2.93103]
[1718735584620,0.61190659,3412.1,3411.8,2.93098]
[1718735584822,0.91907917,3412.2,3411.8,2.93098]
[1718735584823,0.61190659,3412.0,3411.9,2.93091]
[1718735585024,0.61190659,3412.1,3411.7,2.93108]
[1718735585194,0.61190659,3412.1,3411.7,2.93104]
[1718735585395,0.61190659,3412.0,3411.7,2.93104]
[1718735585594,0.61190659,3412.0,3411.6,2.93116]
[1718735585823,3.54280659,3412.0,3411.4,5.41422]
[1718735586021,3.54288659,3411.9,3411.3,2.93136]
[1718735586213,3.54288659,3411.9,3411.2,2.93151]
[1718735586214,0.61190659,3411.8,3411.4,2.93134]
[1718735586537,3.54288659,3411.9,3411.4,2.93134]
[1718735586732,0.61190659,3411.8,3411.4,2.93134]
[1718735586939,0.61190659,3411.8,3411.4,2.63764]
[1718735587142,3.54288659,3411.9,3411.4,2.63764]
[1718735587308,3.54288659,3411.9,3410.6,3.05089572]
[1718735587309,2.93128,3411.5,3410.8,2.93186]
[1718735587509,2.93128,3411.5,3410.9,2.93171]
[1718735587710,0.61190659,3411.3,3410.9,2.93171]
[1718735588019,0.61190659,3411.2,3410.9,2.93175]
[1718735588204,3.54334659,3411.3,3410.5,2.93208]
[1718735588403,3.54350659,3411.1,3410.6,2.93201]
[1718735588638,0.61190659,3411.1,3410.6,2.93203]
[1718735588802,0.61190659,3411.1,3410.7,2.93192]
[1718735589205,2.93178,3410.9,3410.4,2.93219]
[1718735589448,3.54359659,3411.0,3409.8,5.38042]
[1718735589618,0.61190659,3410.8,3409.8,5.08722]
[1718735589958,2.93204,3410.6,3410.1,2.93239]
[1718735590456,0.61190659,3410.6,3410.1,2.93239]
[1718735590680,0.61190659,3410.6,3410.0,2.93252]
[1718735590868,2.94210659,3410.7,3410.0,2.93252]
[1718735591034,5.26216,3410.7,3410.2,2.93237]
[1718735591460,5.26216,3410.7,3410.1,2.93245]
[1718735591762,5.26216,3410.7,3410.2,2.93236]
[1718735593162,5.26216,3410.7,3410.0,2.93252]
[1718735593372,2.9322,3410.4,3409.8,2.9327]
[1718735593654,2.3302,3410.7,3409.6,2.93283]
[1718735593655,2.93219,3410.5,3409.6,2.93288]
[1718735593864,2.93236,3410.3,3409.7,2.93276]
[1718735594037,2.93238,3410.2,3409.7,2.93276]
[1718735594369,2.93203,3410.6,3410.1,2.93239]
[1718735594603,5.93216,3410.5,3409.9,2.93257]
[1718735594907,5.93216,3410.5,3409.5,2.93291]
[1718735594908,2.93221,3410.4,3409.5,2.93291]
[1718735595068,2.93255,3410.0,3409.4,2.93305]
[1718735595275,2.93291,3409.6,3409.0,2.9334]
[1718735595456,8.33477,3409.9,3409.1,2.93332]
[1718735595654,8.33477,3409.9,3409.4,2.93306]
[1718735596167,8.33473,3409.9,3409.4,2.93306]
[1718735596513,2.4021,3409.9,3409.2,2.93321]
[1718735596789,1.91410349,3410.3,3408.8,5.25867]
[1718735596790,3.0,3410.2,3408.8,5.25867]
[1718735596996,2.93255,3410.1,3409.5,2.93292]
[1718735597200,2.93256,3410.0,3409.5,2.93292]
[1718735598156,2.93247,3410.1,3409.6,2.93288]
[1718735599255,2.93275,3409.8,3409.3,2.93313]
[1718735599468,3.78834432,3410.4,3408.8,2.3251]
[1718735599469,2.93265,3409.9,3409.0,2.93339]
[1718735599699,2.93297,3409.6,3409.0,2.93339]
[1718735599862,2.93297,3409.6,3409.1,2.9333]
[1718735600281,2.288,3409.7,3409.0,2.9334]
[1718735600481,2.93298,3409.5,3409.0,2.9334]
[1718735600680,5.22088,3409.7,3409.1,2.93332]
[1718735601000,2.93292,3409.6,3409.1,2.93332]
[1718735601205,2.93292,3409.6,3408.5,8.504639]
[1718735601497,2.93315,3409.3,3408.5,1.174639]
[1718735601702,2.9334,3409.1,3408.5,4.108459]
[1718735601903,2.93308,3409.4,3408.9,2.93349]
[1718735602307,2.93331,3409.2,3408.7,2.93365]
[1718735602524,2.93315,3409.3,3408.7,2.93366]
[1718735602871,2.93348,3409.0,3408.4,2.93387]
[1718735604215,2.288,3409.7,3408.1,2.93411]
[1718735604216,2.93307,3409.4,3408.1,2.93411]
[1718735604374,2.93318,3409.3,3408.8,2.93358]
[1718735604712,2.93307,3409.4,3408.8,2.93358]
[1718735604874,2.93357,3408.9,3408.3,2.93393]
[1718735605076,2.93341,3409.0,3408.4,2.93384]
[1718735605306,2.93342,3409.0,3408.5,2.93382]
[1718735605630,2.288,3409.7,3408.0,2.4339]
[1718735605631,2.93331,3409.2,3408.6,2.93373]
[1718735605771,2.93331,3409.2,3408.5,2.93383]
[1718735605976,2.93331,3409.2,3408.7,2.93366]
[1718735606175,2.93307,3409.4,3408.7,2.93366]
[1718735606176,2.93311,3409.4,3408.7,2.93361]
[1718735606380,2.933,3409.5,3409.0,2.93339]
[1718735606613,1.9142139,3409.8,3408.6,2.101]
[1718735606814,1.40644432,3410.3,3409.9,2.93258]
[1718735607043,3.43986237,3410.4,3409.8,2.93265]
[1718735607182,2.93206,3410.6,3408.7,3.48366]
[1718735607509,2.93271,3409.9,3409.4,2.93304]
[1718735607675,2.93256,3410.0,3409.5,2.93298]
[1718735608074,2.93296,3409.6,3409.1,2.9333]
[1718735608421,2.93281,3409.7,3409.2,2.93323]
[1718735609732,1.91412486,3410.7,3410.3,2.93229]
[1718735609921,2.93187,3410.8,3410.3,2.93229]
[1718735609922,1.40644432,3410.8,3410.3,2.93229]
[1718735610231,4.33847432,3410.7,3410.1,2.93238]
[1718735610725,2.93212,3410.5,3410.0,2.93253]
[1718735610936,2.93212,3410.5,3409.8,2.9327]
[1718735610937,2.93212,3410.5,3409.9,2.93262]
[1718735611302,4.33856432,3410.5,3410.0,2.93253]
[1718735611508,4.33856432,3410.5,3409.1,2.9333]
[1718735611509,2.93222,3410.4,3409.9,2.93263]
[1718735611743,2.93222,3410.4,3409.1,2.9333]
[1718735611744,1.40644432,3410.4,3409.2,2.60443]
[1718735611949,1.40644432,3410.5,3410.3,2.93229]
[1718735612101,1.40644432,3410.6,3410.3,2.93229]
[1718735612309,1.40644432,3410.5,3410.3,2.93229]
[1718735612626,1.40503455,3410.5,3410.4,2.9322]
[1718735612953,1.40503455,3410.6,3409.9,2.9326]
[1718735613106,1.40503455,3410.6,3410.1,2.93239]
[1718735613107,4.33707455,3410.6,3410.1,2.93239]
[1718735613306,1.40503455,3410.5,3410.1,2.93239]
[1718735613632,1.40503455,3410.5,3409.6,2.93282]
[1718735613633,2.93238,3410.2,3409.6,2.93282]
[1718735613834,2.93238,3410.2,3408.4,5.93384]
[1718735613835,2.93255,3410.0,3408.8,9.431]
[1718735614139,2.4645,3410.5,3409.4,2.93305]
[1718735614140,1.40503455,3409.9,3409.4,2.93305]
[1718735614354,1.40503455,3409.8,3409.5,2.93297]
[1718735614585,1.40503455,3409.9,3409.7,2.9328]
[1718735614946,1.40503455,3409.9,3409.4,2.93305]
[1718735615270,2.101,3410.9,3409.8,2.93272]
[1718735615271,3.43953579,3410.7,3409.8,2.93272]
[1718735615585,3.43953579,3410.7,3410.0,2.93255]
[1718735615586,1.40485764,3410.1,3410.0,2.93255]
[1718735615877,1.40485764,3410.1,3410.0,5.8651]
[1718735616069,1.40485764,3410.2,3410.1,5.86492]
[1718735616364,0.50757579,3410.8,3410.2,8.79711]
[1718735616365,1.40485764,3410.3,3410.2,8.79711]
[1718735616573,1.40485764,3410.4,3410.3,5.86458]
[1718735616728,1.40485764,3410.4,3410.3,8.79687]
[1718735616926,1.40485764,3410.8,3410.7,2.93194]
[1718735617129,1.40510339,3410.8,3410.7,5.86388]
[1718735617371,1.40512504,3410.8,3410.3,2.78193272]
[1718735617538,1.40512504,3410.7,3410.6,2.93203]
[1718735617739,1.40512504,3410.7,3410.6,8.79609]
[1718735618163,1.40512504,3410.7,3410.3,2.78193272]
[1718735618164,1.40512504,3410.8,3410.7,5.86388]
[1718735618329,1.40512504,3410.8,3410.7,2.93194]
[1718735618535,7.87757579,3411.3,3410.6,2.93195]
[1718735618536,0.50757579,3411.2,3410.6,2.93195]
[1718735618729,0.50757579,3411.1,3410.2,2.93229]
[1718735618965,1.40481451,3410.3,3410.1,2.93244]
[1718735619281,1.40481451,3410.3,3410.2,2.93237]
[1718735619485,1.40465799,3410.3,3410.2,2.93237]
[1718735619978,0.50757579,3410.9,3410.2,2.93237]
[1718735620188,1.40467141,3410.4,3410.3,5.86458]
[1718735620575,1.40467141,3410.5,3410.4,5.8644]
[1718735620939,1.40467141,3410.5,3410.4,8.7966]
[1718735621145,1.40467141,3410.7,3410.6,8.79609]
[1718735621342,1.40467141,3410.8,3410.7,5.86388]
[1718735622176,1.40467141,3411.0,3410.8,5.86372]
[1718735622346,1.40467141,3411.1,3410.8,2.93186]
[1718735622668,1.40467141,3411.1,3411.0,8.79507]
[1718735623359,7.37,3411.7,3410.7,2.93187]
[1718735623360,1.40467141,3411.2,3411.1,2.9316]
[1718735623543,3.43881579,3411.6,3411.1,2.9316]
[1718735623744,3.43881579,3411.6,3411.2,2.93151]
[1718735624045,0.50757579,3411.6,3411.2,2.93151]
[1718735624241,1.40442036,3411.3,3411.1,2.9316]
[1718735624440,1.40442036,3411.3,3411.2,2.93151]
[1718735624649,1.40442036,3411.3,3411.2,5.86302]
[1718735625083,7.87757579,3411.7,3411.2,5.86302]
[1718735625084,1.40442036,3411.4,3411.2,2.93151]
[1718735625290,1.40442036,3411.4,3410.9,2.93176]
[1718735625582,4.84323615,3411.6,3411.0,2.93162]
[1718735625761,4.33579036,3411.4,3410.9,2.93176]
[1718735625958,1.40442036,3411.4,3411.0,2.93165]
[1718735626355,1.40442036,3411.4,3411.1,2.93159]
[1718735626576,1.40442036,3411.5,3411.1,2.9316]
[1718735626745,1.40442036,3411.5,3411.2,2.9315]
[1718735627145,1.40442036,3411.6,3411.2,2.9315]
[1718735627385,1.40442036,3411.6,3411.3,2.93141]
[1718735627686,1.40442036,3411.7,3411.3,2.93141]
[1718735627893,1.40442036,3411.6,3411.4,2.9313]
[1718735628101,1.40442036,3411.8,3411.6,2.93111]
[1718735628391,2.01632695,3411.9,3411.3,2.93139]
[1718735628552,3.84245496,3412.1,3410.7,2.93191]
[1718735628553,4.94757695,3411.6,3410.7,2.93191]
[1718735628984,4.94757695,3411.6,3411.1,2.93159]
[1718735629685,4.94757695,3411.6,3410.9,2.93177]
[1718735629686,2.01632695,3411.6,3411.0,2.93162]
[1718735629991,2.01632695,3411.6,3410.9,2.93177]
[1718735629992,2.93136,3411.4,3410.9,2.93176]
[1718735630207,0.61190659,3411.5,3411.0,2.93162]
[1718735630367,0.61190659,3411.4,3411.0,2.93162]
[1718735630683,0.61190659,3411.4,3411.1,2.93159]
[1718735631788,0.61190659,3411.4,3411.2,2.6948]
[1718735632108,0.61190659,3411.4,3411.2,2.64456936]
[1718735632400,3.54335659,3411.3,3410.8,2.93186]
[1718735632563,0.61190659,3411.3,3410.9,2.93176]
[1718735632889,0.61190659,3411.2,3410.9,2.93176]
[1718735633455,0.61190659,3411.1,3410.9,2.93176]
[1718735633652,0.61190659,3411.1,3411.0,2.93169]
[1718735633959,0.61190659,3411.4,3411.2,2.93151]
[1718735634158,0.61190659,3411.5,3411.4,2.93134]
[1718735634368,0.61190659,3411.6,3411.5,2.93126]
[1718735634554,0.61025996,3411.6,3411.5,2.93126]
[1718735634875,0.61025996,3411.6,3411.4,2.93133]
[1718735635171,0.61025996,3411.7,3411.4,2.93133]
[1718735635379,0.61025996,3411.7,3411.0,2.93165]
[1718735635380,0.61025996,3411.7,3411.2,2.93151]
[1718735635594,0.61025996,3411.6,3411.2,2.93151]
[1718735635905,0.61025996,3411.4,3411.2,2.93151]
[1718735636089,0.61025996,3411.5,3411.2,2.93151]
[1718735636290,0.61025996,3411.5,3411.3,2.93143]
[1718735636993,0.61025996,3411.6,3411.3,2.93143]
[1718735637594,2.01569626,3411.6,3411.3,2.93143]
[1718735638595,2.01569626,3411.5,3411.3,2.93143]
[1718735639001,2.01576751,3411.6,3411.3,2.93143]
[1718735639496,1.40550755,3411.5,3411.3,2.93143]
[1718735639704,2.01576751,3411.5,3411.2,2.93148]
[1718735640272,1.40550755,3411.5,3411.3,2.93139]
[1718735640685,1.40550755,3411.5,3411.2,2.93148]
[1718735640898,2.93158,3411.2,3410.6,2.93202]
[1718735641112,2.01622428,3411.2,3411.0,2.93167]
[1718735641315,1.406016,3411.3,3411.2,2.93151]
[1718735641600,0.61020828,3411.4,3411.3,2.93143]
[1718735641601,1.406016,3411.4,3411.3,2.93143]
[1718735641802,2.01622428,3411.5,3411.4,2.93134]
[1718735642504,3.54150828,3411.5,3411.0,2.93167]
[1718735642705,4.33782027,3411.3,3410.8,2.93185]
[1718735643004,1.40633027,3411.1,3410.7,2.93192]
[1718735643216,4.94814855,3411.1,3410.6,2.93201]
[1718735643532,2.93196,3410.7,3410.2,2.93231]
[1718735643706,2.93211,3410.6,3410.1,2.9324]
[1718735644034,2.93222,3410.4,3409.6,2.93289]
[1718735644304,1.40633027,3410.0,3409.6,2.93289]
[1718735644540,2.01653855,3410.0,3409.7,2.83747423]
[1718735644685,2.01653855,3410.0,3409.8,2.93272]
[1718735644882,1.40633027,3410.0,3409.8,2.93272]
[1718735645109,2.01653855,3410.0,3409.8,2.93272]
[1718735645273,1.40633027,3410.0,3409.8,2.93272]
[1718735645675,2.01653855,3410.0,3409.6,2.93288]
[1718735645908,1.40633027,3409.9,3409.5,2.93296]
[1718735646120,2.01653855,3409.9,3409.2,2.93321]
[1718735646298,2.01653855,3409.9,3409.4,2.93304]
[1718735646299,2.01653855,3409.8,3409.4,2.93304]
[1718735646469,4.94925855,3409.8,3409.2,2.93323]
[1718735646780,3.54301828,3409.7,3409.3,2.63943]
[1718735646985,0.61020828,3409.7,3409.3,2.63943]
[1718735647385,2.93298,3409.5,3409.1,2.93332]
[1718735647780,2.93291,3409.6,3409.1,2.93332]
[1718735648274,0.61020828,3409.7,3409.4,2.93306]
[1718735648668,0.61020828,3409.7,3409.0,2.93341]
[1718735648897,2.9329,3409.6,3409.0,2.93341]
[1718735649096,2.9329,3409.6,3409.1,2.9333]
[1718735649293,3.54302828,3409.7,3409.2,2.93323]
[1718735649484,2.93293,3409.6,3409.0,2.93332]
[1718735649698,2.93293,3409.6,3409.1,2.9333]
[1718735650272,3.54301828,3409.7,3409.1,2.9333]
[1718735650496,2.93296,3409.6,3408.9,2.93343]
[1718735650701,2.933,3409.5,3408.9,2.93343]
[1718735651015,2.93333,3409.1,3408.5,2.93384]
[1718735651172,2.93333,3409.1,3408.6,2.93374]
[1718735651573,2.93307,3409.4,3408.8,2.93358]
[1718735651773,2.93298,3409.5,3409.0,2.93339]
[1718735652228,2.93298,3409.5,3408.7,2.93359]
[1718735652229,1.40630204,3409.2,3409.1,2.93332]
[1718735652384,3.0,3409.6,3408.1,2.34546113]
[1718735652719,0.50772262,3409.8,3408.8,2.2535]
[1718735652924,0.50772262,3409.8,3409.7,2.9328]
[1718735653072,1.40612619,3409.9,3409.3,2.9331]
[1718735653413,2.93273,3409.8,3409.2,2.93322]
[1718735653581,2.93273,3409.8,3409.1,0.783789]
[1718735653582,2.93242,3410.2,3409.3,2.93307]
[1718735653774,1.40597262,3409.8,3409.5,2.93298]
[1718735654001,1.40597262,3409.9,3409.6,2.93289]
[1718735654200,2.13214047,3409.8,3409.6,2.93289]
[1718735654374,1.40597262,3409.9,3409.6,2.93289]
[1718735654577,2.13214705,3409.8,3409.6,2.93289]
[1718735654888,3.53811967,3409.8,3409.5,2.93296]
[1718735655085,4.33853262,3410.0,3409.6,2.93287]
[1718735655409,2.13212017,3409.9,3409.6,2.93287]
[1718735655609,2.93247,3410.1,3409.6,2.93287]
[1718735655610,2.13210858,3409.8,3409.6,2.93287]
[1718735655806,4.33844262,3410.1,3409.7,2.9328]
[1718735655974,2.13201959,3410.0,3409.7,2.9328]
[1718735656375,2.13203038,3409.9,3409.7,2.9328]
[1718735656573,2.93247,3410.1,3409.7,2.9328]
[1718735656876,2.1320081,3410.0,3409.9,2.93263]
[1718735657081,0.50762628,3410.3,3410.0,2.93255]
[1718735657281,2.13190977,3410.2,3410.1,2.93246]
[1718735658119,1.40626441,3410.4,3410.1,2.93246]
[1718735658291,1.40626441,3410.9,3410.1,0.293246]
[1718735658500,1.91380321,3411.1,3410.7,2.93194]
[1718735658688,2.13140723,3411.0,3410.9,2.93175]
[1718735658886,2.13133735,3411.2,3410.8,2.93184]
[1718735659111,2.13133735,3411.1,3410.7,2.93192]
[1718735659805,2.13133735,3411.1,3410.8,2.93184]
[1718735660007,2.13133735,3411.1,3411.0,2.93169]
[1718735660309,2.13128613,3411.2,3410.9,2.93176]
[1718735660499,2.13128613,3411.2,3410.8,2.93184]
[1718735660925,2.93177,3411.0,3410.4,2.93212]
[1718735661231,2.13128613,3410.9,3410.5,2.93211]
[1718735661401,2.13128613,3410.9,3410.2,2.272]
[1718735661402,2.13128613,3410.9,3410.6,2.93202]
[1718735661605,1.40626441,3411.3,3410.9,2.93177]
[1718735661934,2.13128541,3411.2,3410.9,2.63807]
[1718735662087,2.13128541,3411.1,3410.7,2.93194]
[1718735662288,2.93144,3411.3,3410.7,2.93194]
[1718735662489,2.13125441,3411.2,3410.9,2.93177]
[1718735663225,2.13125441,3411.2,3410.7,2.93194]
[1718735663528,2.93176,3411.0,3410.5,2.9321]
[1718735663696,2.13133762,3410.9,3410.5,2.9321]
[1718735663893,2.93161,3411.1,3410.3,2.93225]
[1718735664094,2.13141062,3411.0,3410.3,2.93225]
[1718735664627,2.13141062,3411.0,3410.5,2.93211]
[1718735664809,2.13141062,3411.0,3410.2,2.272]
[1718735665015,3.53767503,3411.0,3410.1,2.93245]
[1718735665239,3.53767503,3410.9,3410.3,2.93225]
[1718735665448,2.13141062,3410.8,3410.5,2.93211]
[1718735665942,2.13141062,3410.8,3410.1,2.93238]
[1718735666151,3.53767503,3410.8,3410.1,2.93238]
[1718735666339,2.13141062,3410.7,3410.1,2.93238]
[1718735666648,2.13141062,3410.7,3410.3,2.93227]
[1718735667057,1.22252242,3410.5,3410.3,2.93227]
[1718735667225,1.22252242,3410.4,3410.3,2.93227]
[1718735667548,1.22252242,3410.5,3410.4,5.8644]
[1718735667713,2.44513257,3410.6,3410.5,5.86424]
[1718735668219,1.52815302,3410.6,3410.5,5.86424]
[1718735668432,2.75067544,3410.6,3410.1,2.93244]
[1718735668752,0.61131454,3410.2,3410.1,2.93244]
[1718735668968,0.91697181,3410.4,3410.1,2.93244]
[1718735668969,1.22252242,3410.4,3410.2,2.93235]
[1718735669143,1.22252242,3410.3,3410.2,2.93235]
[1718735669512,1.22252242,3410.3,3410.2,5.86472]
[1718735669719,1.22252242,3410.4,3410.3,5.86458]
[1718735669927,1.22252242,3410.5,3410.4,2.9322]
[1718735670264,1.52815302,3410.6,3410.5,5.86424]
[1718735670265,2.75067544,3410.6,3410.5,5.86424]
[1718735670416,1.52815302,3410.6,3410.5,5.86424]
[1718735670612,1.52815302,3410.6,3410.5,8.79636]
[1718735670814,1.52815302,3410.6,3410.5,12.608116]
[1718735670815,2.13938896,3410.6,3410.5,12.608116]
[1718735671037,1.52815302,3410.6,3410.5,20.539036]
[1718735671327,0.61123594,3411.0,3410.9,11.72708]
[1718735671527,0.91685602,3411.2,3411.1,8.7948]
[1718735671528,0.61123594,3411.2,3411.1,8.7948]
[1718735672126,0.61123594,3411.2,3410.9,3.813707]
[1718735672127,0.91685602,3411.3,3411.2,2.93151]
[1718735672526,0.91685602,3411.4,3411.3,2.93143]
[1718735672765,1.22252242,3411.5,3411.4,5.86268]
[1718735673355,1.22252242,3411.6,3411.5,5.86252]
[1718735673533,3.35343491,3411.6,3411.5,5.86252]
[1718735673819,1.22252242,3411.6,3411.5,5.86252]
[1718735674320,3.35343563,3411.6,3411.5,5.86252]
[1718735674639,1.22252242,3411.6,3411.5,5.86252]
[1718735674838,1.22252242,3411.6,3411.5,9.673166]
[1718735675071,0.91658092,3411.9,3411.8,8.793]
[1718735675288,0.61095257,3411.9,3411.7,5.86218]
[1718735675565,0.61095257,3412.0,3411.6,3.0487646]
[1718735675784,0.61095257,3412.0,3411.9,8.79273]
[1718735676085,0.61095257,3412.1,3412.0,5.86166]
[1718735676217,0.61095257,3412.6,3412.1,2.93074]
[1718735676416,0.61095257,3413.0,3412.7,2.93023]
[1718735676776,0.61117901,3413.2,3413.1,5.85976]
[1718735677051,0.61117901,3413.2,3413.1,2.63618]
[1718735677265,0.61117901,3413.2,3413.0,2.92996]
[1718735677430,0.61057584,3413.1,3413.0,2.92996]
[1718735678284,0.61057584,3413.2,3412.9,2.93005]
[1718735678427,3.54054584,3413.0,3412.5,2.93039]
[1718735678628,3.54054584,3413.0,3412.9,2.93005]
[1718735678629,0.91658092,3413.0,3412.9,2.93005]
[1718735678927,0.61025228,3413.1,3413.0,5.85994]
[1718735679131,0.61025228,3413.2,3413.1,2.92988]
[1718735679447,0.61025228,3413.4,3413.3,5.85942]
[1718735679683,0.91658092,3413.5,3413.4,5.85926]
[1718735679684,0.61025228,3413.5,3413.4,5.85926]
[1718735679834,3.60997365,3413.6,3413.5,2.92954]
[1718735680039,0.60999248,3413.6,3413.5,2.92954]
[1718735680274,3.0,3413.6,3413.5,2.92954]
[1718735680480,0.60999248,3413.7,3413.6,2.92945]
[1718735681145,0.60999248,3413.8,3413.6,2.92945]
[1718735681343,0.60999248,3413.8,3413.7,2.92937]
[1718735681558,0.60999248,3413.8,3413.7,5.85874]
[1718735681768,3.91658092,3414.0,3413.5,2.92953]
[1718735681769,3.0,3414.0,3413.5,2.92953]
[1718735681973,3.0,3414.0,3413.6,2.92945]
[1718735682279,3.0,3414.0,3413.7,2.92935]
[1718735682451,3.60999248,3414.2,3413.8,2.92926]
[1718735682633,6.53896248,3414.2,3413.5,2.92953]
[1718735682838,5.92897,3414.2,3413.5,2.92953]
[1718735683255,5.92897,3414.2,3413.7,2.92929]
[1718735683670,2.92912,3414.0,3413.5,2.92954]
[1718735684651,2.92946,3413.6,3412.9,2.93005]
[1718735684878,2.92937,3413.7,3413.2,2.9298]
[1718735685035,2.92937,3413.7,3412.8,2.93014]
[1718735685036,2.92937,3413.7,3412.9,2.92997]
[1718735685241,2.92946,3413.6,3413.1,2.92986]
[1718735685442,2.92946,3413.6,3413.2,2.9298]
[1718735685666,2.92919,3414.0,3413.3,2.9297]
[1718735685879,5.38045,3414.1,3413.3,2.9297]
[1718735686092,2.92938,3413.7,3413.3,2.9297]
[1718735687952,2.92938,3413.7,3413.2,2.92979]
[1718735688362,2.9292,3413.9,3413.2,2.92979]
[1718735688568,5.92912,3414.0,3413.5,2.92952]
[1718735689388,3.0,3414.0,3413.5,2.92953]
[1718735689564,3.0,3414.4,3413.5,2.92953]
[1718735689986,2.92894,3414.2,3413.7,2.92931]
[1718735690165,3.0,3414.1,3413.7,2.92931]
[1718735690600,3.0,3414.1,3413.8,2.92926]
[1718735690803,5.92887,3414.3,3413.8,2.92926]
[1718735691368,2.92896,3414.2,3413.6,2.92944]
[1718735691571,2.92924,3413.9,3413.4,5.85922]
[1718735691801,2.92924,3413.9,3413.4,2.63878212]
[1718735692706,2.92924,3413.9,3413.5,2.92954]
[1718735693084,5.92903,3414.1,3413.5,2.92954]
[1718735693710,2.92938,3413.7,3413.2,2.92973]
[1718735694029,2.92946,3413.6,3413.0,2.92989]
[1718735694317,2.92946,3413.6,3412.9,2.93001]
[1718735694318,2.92946,3413.6,3413.1,2.92986]
[1718735695177,2.92956,3413.5,3413.0,2.92995]
[1718735695573,2.9293,3413.8,3413.3,2.92965]
[1718735695888,2.9293,3413.8,3413.2,2.92979]
[1718735695889,2.92944,3413.7,3413.2,2.92979]
[1718735697107,2.92944,3413.7,3413.1,2.92987]
[1718735697276,2.9293,3413.8,3413.4,2.92962]
[1718735697675,2.92937,3413.7,3413.3,2.9297]
[1718735698431,1.91365846,3414.0,3413.9,5.8584]